[Event "Kashem Chowdhury Rating-A 2019"]
[Site "Dhaka"]
[Date "2019.05.06"]
[Round "1.3"]
[White "Subrota, Biswas"]
[Black "Mohammad Fahad, Rahman"]
[Result "0-1"]
[ECO "D27"]
[WhiteElo "2086"]
[BlackElo "2322"]
[Annotator "RC"]
[PlyCount "116"]
[EventDate "2019.05.04"]
[EventType "swiss"]
[EventCountry "BAN"]
[SourceTitle "playchess.com"]
[Source "ChessBase"]
[SourceQuality "1"]
[TimeControl "5400+30"]

1. d4 {[%emt 0:00:00]} d5 {[%emt 0:03:44]} 2. c4 {[%emt 0:00:00]} dxc4 {[%emt 0:00:13]} 3. Nf3 {[%emt 0:01:52]} Nf6 {[%emt 0:02:00]} 4. e3 {[%emt 0:01:13]} e6 {[%emt 0:00:27]} 5. Bxc4 {[%emt 0:00:22]} c5 {[%emt 0:00:57]} 6. O-O {[%emt 0:01:44]} a6 {[%emt 0:02:07]} 7. Bb3 {[%emt 0:04:50]} Nc6 {[%emt 0:00:51]} 8. Nc3 {[%emt 0:02:34]} Be7 {[%emt 0:04:39]} 9. Ne5 {[%emt 0:25:31]} O-O {[%emt 0:06:06]} 10. Nxc6 {[%emt 0:01:30]} bxc6 {[%emt 0:00:08]} 11. dxc5 {[%emt 0:03:05]} Bxc5 {[%emt 0:01:09]} 12. Qxd8 {[%emt 0:12:05]} Rxd8 {[%emt 0:00:32]} 13. Rd1 {[%emt 0:01:33]} Bb7 {[%emt 0:04:25]} 14. Bd2 {[%emt 0:01:57]} Bb4 {[%emt 0:10:22]} 15. Be1 {[%emt 0:09:02]} c5 {[%emt 0:08:46]} 16. f3 {[%emt 0:04:13]} Bc6 {[%emt 0:05:40]} 17. e4 {[%emt 0:06:34]} Nd7 {[%emt 0:07:10]} 18. Bc4 {[%emt 0:01:05]} Rdc8 {[%emt 0:09:09]} 19. Be2 {[%emt 0:09:38]} Nb6 {[%emt 0:01:04]} 20. a3 {[%emt 0:02:09]} Bxc3 {[%emt 0:02:47]} 21. bxc3 {[%emt 0:00:47]} Bb5 {[%emt 0:02:10]} 22. Bxb5 axb5 {[%emt 0:00:01]} 23. Rdb1 {[%emt 0:03:10]} Nc4 {[%emt 0:00:19]} 24. Rxb5 {[%emt 0:00:13]} Nxa3 {[%emt 0:03:07]} 25. Rb2 {[%emt 0:01:18]} Nc4 {[%emt 0:02:06]} 26. Rxa8 {[%emt 0:00:03]} Rxa8 {[%emt 0:00:04]} 27. Rb5 {[%emt 0:00:23]} f6 {[%emt 0:00:13]} 28. Kf1 {[%emt 0:03:03]} Ne5 {[%emt 0:03:25]} 29. c4 {[%emt 0:03:30]} Ra1 {[%emt 0:01:50]} 30. Rb3 {[%emt 0:00:36]} Nxc4 {[%emt 0:00:48]} 31. Rc3 {[%emt 0:00:32]} Ne5 {[%emt 0:00:02]} 32. Ke2 {[%emt 0:00:33]} Kf7 {[%emt 0:05:06]} 33. Bd2 {[%emt 0:00:44]} Nd7 {[%emt 0:02:24]} 34. Be3 {[%emt 0:00:08]} Ra2+ {[%emt 0:00:11]} 35. Kf1 {[%emt 0:00:03]} Ra5 {[%emt 0:00:09]} 36. Rb3 {[%emt 0:01:03]} Ke7 {[%emt 0:00:13]} 37. Rb7 {[%emt 0:00:09]} Kd6 {[%emt 0:00:13]} 38. Bf4+ {[%emt 0:00:05]} e5 {[%emt 0:00:06]} 39. Be3 {[%emt 0:00:04]} Kc6 {[%emt 0:00:25]} 40. Rb2 {[%emt 0:00:09]} Ra3 {[%emt 0:02:20]} 41. Ke2 {[%emt 0:00:17]} Nb6 {[%emt 0:00:28]} 42. Bf2 {[%emt 0:00:40]} Ra4 {[%emt 0:02:55]} 43. h4 {[%emt 0:00:20]} Rb4 {[%emt 0:00:32]} 44. Rd2 {[%emt 0:01:21]} c4 {[%emt 0:01:00]} 45. Rd8 {[%emt 0:00:29]} Rb2+ {[%emt 0:00:16]} 46. Ke1 {[%emt 0:00:26]} c3 {[%emt 0:00:19]} 47. Be3 {[%emt 0:00:50]} Rb1+ {[%emt 0:02:22]} 48. Ke2 {[%emt 0:00:40]} c2 {[%emt 0:00:23]} 49. Bd2 {[%emt 0:01:21]} c1=Q {[%emt 0:01:16]} 50. Bxc1 {[%emt 0:00:03]} Rxc1 {[%emt 0:00:06]} 51. Rg8 {[%emt 0:00:16]} Rc2+ {[%emt 0:00:21]} 52. Kf1 {[%emt 0:00:07]} g6 {[%emt 0:01:24]} 53. Rf8 {[%emt 0:00:43]} Nc4 {[%emt 0:00:26]} 54. Rxf6+ {[%emt 0:00:08]} Kc5 {[%emt 0:00:07]} 55. g4 {[%emt 0:00:04]} Kd4 {[%emt 0:00:35]} 56. h5 {[%emt 0:00:20]} gxh5 {[%emt 0:00:29]} 57. gxh5 {[%emt 0:00:04]} Ke3 {[%emt 0:00:16]} 58. Kg1 {[%emt 0:01:49]} Nd2 {[%emt 0:00:30]} 0-1

[Event "Kashem Chowdhury Rating-A 2019"]
[Site "Dhaka"]
[Date "2019.05.06"]
[Round "2.6"]
[White "Nayem, Haque"]
[Black "Mohammad Minhaz Uddin"]
[Result "0-1"]
[ECO "C42"]
[WhiteElo "2106"]
[BlackElo "2294"]
[Annotator "RC"]
[PlyCount "36"]
[EventDate "2019.05.04"]
[EventType "swiss"]
[EventCountry "BAN"]
[SourceTitle "playchess.com"]
[Source "ChessBase"]
[SourceQuality "1"]
[TimeControl "5400+30"]

1. e4 {[%emt 0:00:00]} e5 {[%emt 0:38:51]} 2. Nf3 {[%emt 0:00:00]} Nf6 {[%emt 0:00:12]} 3. Nxe5 {[%emt 0:00:00]} d6 {[%emt 0:00:16]} 4. Nd3 {[%emt 0:00:00]} Nxe4 {[%emt 0:00:03]} 5. Qe2 {[%emt 0:00:00]} Qe7 {[%emt 0:00:16]} 6. Nf4 {[%emt 0:00:02]} c6 {[%emt 0:00:22]} 7. d3 {[%emt 0:00:43]} Nf6 {[%emt 0:03:19]} 8. Nc3 {[%emt 0:00:18]} Bf5 {[%emt 0:05:58]} 9. f3 {[%emt 0:01:55]} Na6 {[%emt 0:05:55]} 10. Qxe7+ {[%emt 0:01:14]} Bxe7 {[%emt 0:00:03]} 11. Ne4 {[%emt 0:03:08]} O-O-O {[%emt 0:05:23]} 12. Ng3 {[%emt 0:00:39]} Bd7 {[%emt 0:00:09]} 13. Bd2 {[%emt 0:00:13]} d5 {[%emt 0:01:45]} 14. d4 {[%emt 0:00:46]} Nc7 {[%emt 0:00:14]} 15. Bd3 {[%emt 0:00:58]} Rhe8 {[%emt 0:00:42]} 16. Kf2 {[%emt 0:00:29]} g6 {[%emt 0:00:57]} 17. c3 {[%emt 0:03:05]} h5 {[%emt 0:01:45]} 18. h4 {[%emt 0:01:31]} Ng8 {[%emt 0:00:52]} 0-1

[Event "Kashem Chowdhury Rating-A 2019"]
[Site "Dhaka"]
[Date "2019.05.06"]
[Round "2.8"]
[White "Md. Jamal Uddin"]
[Black "Islam, Mohammad Aminul"]
[Result "1-0"]
[ECO "E73"]
[WhiteElo "2084"]
[BlackElo "2027"]
[Annotator "NA RC"]
[PlyCount "41"]
[EventDate "2019.05.04"]
[EventType "swiss"]
[EventCountry "BAN"]
[SourceTitle "playchess.com"]
[Source "ChessBase"]
[SourceQuality "1"]
[TimeControl "5400+30"]

1. d4 {[%emt 0:00:00]} Nf6 {[%emt 0:04:26]} 2. c4 {[%emt 0:00:00]} d6 {[%emt 0:00:51]} 3. Nc3 {[%emt 0:00:10]} g6 {[%emt 0:01:13]} 4. e4 {[%emt 0:00:16]} Bg7 {[%emt 0:00:06]} 5. Be2 {[%emt 0:00:38]} Nbd7 {[%emt 0:02:00]} 6. Bg5 {[%emt 0:01:06]} h6 {[%emt 0:00:20]} 7. Be3 {[%emt 0:00:19]} c5 {[%emt 0:03:38]} 8. d5 {[%emt 0:04:28]} Qa5 {[%emt 0:03:13]} 9. Bd2 {[%emt 0:00:46]} a6 {[%emt 0:01:03]} 10. Qc2 {[%emt 0:00:38]} O-O {[%emt 0:01:02]} 11. Nf3 {[%emt 0:00:53]} Rb8 {[%emt 0:02:44]} 12. O-O {[%emt 0:01:26]} Qc7 {[%emt 0:02:08]} 13. h3 {[%emt 0:01:35]} Re8 {[%emt 0:03:01]} 14. a4 {[%emt 0:02:56]} e6 {[%emt 0:02:35]} 15. dxe6 {[%emt 0:01:19]} Rxe6 {[%emt 0:00:44]} 16. Rae1 {[%emt 0:01:39]} b6 {[%emt 0:01:10]} 17. Nd5 {[%emt 0:01:23]} Qd8 {[%emt 0:09:36]} 18. Bd3 {[%emt 0:02:07]} Bb7 {[%emt 0:07:32]} 19. Bc3 {[%emt 0:03:51]} Nxd5 {[%emt 0:04:44]} 20. exd5 {[%emt 0:00:43]} Rxe1 {[%emt 0:04:05]} 21. Rxe1 {[%emt 0:00:31]} 1-0

[Event "Kashem Chowdhury Rating-A 2019"]
[Site "Dhaka"]
[Date "2019.05.06"]
[Round "2.11"]
[White "Anowar, Hossain Dulal"]
[Black "Jabed Al Azad"]
[Result "1-0"]
[ECO "A06"]
[WhiteElo "1814"]
[BlackElo "1999"]
[Annotator "NA RC"]
[PlyCount "71"]
[EventDate "2019.05.04"]
[EventType "swiss"]
[EventCountry "BAN"]
[SourceTitle "playchess.com"]
[Source "ChessBase"]
[SourceQuality "1"]
[TimeControl "5400+30"]

1. b3 {[%emt 1:30:30]} d5 {[%emt 1:30:30]} 2. Bb2 {[%emt 0:00:30]} c5 {[%emt 0:00:30]} 3. e3 {[%emt 0:00:30]} Nc6 {[%emt 0:00:30]} 4. Nf3 {[%emt 0:00:30]} Nf6 {[%emt 0:00:30]} 5. Bb5 {[%emt 0:00:30]} Bg4 {[%emt 0:00:30]} 6. h3 {[%emt 0:00:30]} Bh5 {[%emt 0:00:30]} 7. g4 {[%emt 0:00:30]} Bg6 {[%emt 0:00:30]} 8. Bxc6+ {[%emt 0:00:30]} bxc6 {[%emt 0:00:30]} 9. Ne5 {[%emt 0:00:30]} Qc7 {[%emt 0:00:30]} 10. d3 {[%emt 0:00:30]} e6 {[%emt 0:00:30]} 11. Nxg6 {[%emt 0:00:30]} hxg6 {[%emt 0:00:30]} 12. Qf3 {[%emt 0:00:30]} e5 {[%emt 0:00:30]} 13. Nd2 {[%emt 0:00:30]} a5 {[%emt 0:00:30]} 14. a4 {[%emt 0:00:30]} Rb8 {[%emt 0:00:30]} 15. e4 {[%emt 0:00:30]} d4 {[%emt 0:00:30]} 16. Nc4 {[%emt 0:00:30]} Nd7 {[%emt 0:00:30]} 17. Qg3 {[%emt 0:00:30]} Bd6 {[%emt 0:00:30]} 18. Bc1 {[%emt 0:00:30]} Ra8 {[%emt 0:00:30]} 19. Bd2 {[%emt 0:00:30]} Nf8 {[%emt 0:00:30]} 20. f4 {[%emt 0:00:30]} exf4 {[%emt 0:00:30]} 21. Nxd6+ {[%emt 0:00:30]} Qxd6 {[%emt 0:00:30]} 22. Bxf4 {[%emt 0:00:30]} Qd7 {[%emt 0:00:30]} 23. h4 {[%emt 0:00:30]} Ne6 {[%emt 0:00:30]} 24. h5 {[%emt 0:00:30]} Ke7 {[%emt 0:00:30]} 25. O-O-O {[%emt 0:00:30]} gxh5 {[%emt 0:00:30]} 26. gxh5 {[%emt 0:00:30]} Nxf4 {[%emt 0:00:30]} 27. Qxf4 {[%emt 0:00:30]} Qd6 {[%emt 0:00:30]} 28. Qg5+ {[%emt 0:00:30]} Kf8 {[%emt 0:00:30]} 29. Kb2 {[%emt 0:00:30]} Re8 {[%emt 0:00:30]} 30. Rdf1 {[%emt 0:00:30]} c4 {[%emt 0:00:30]} 31. Rhg1 {[%emt 0:00:30]} c3+ {[%emt 0:00:30]} 32. Ka2 {[%emt 0:00:30]} Rh7 {[%emt 0:00:30]} 33. Qf5 {[%emt 0:00:30]} g6 {[%emt 0:00:30]} 34. hxg6 {[%emt 0:00:30]} Qh2 {[%emt 0:00:30]} 35. Rf2 {[%emt 0:00:30]} Qxg1 {[%emt 0:00:30]} 36. gxh7 {[%emt 0:00:30]} 1-0

[Event "Kashem Chowdhury Rating-A 2019"]
[Site "Dhaka"]
[Date "2019.05.06"]
[Round "3.1"]
[White "Hossain, Enamul"]
[Black "Rahman, Ziaur"]
[Result "1-0"]
[ECO "B01"]
[WhiteElo "2442"]
[BlackElo "2485"]
[Annotator "ChessBase"]
[PlyCount "111"]
[EventDate "2019.05.04"]
[EventType "swiss"]
[EventCountry "BAN"]
[SourceTitle "playchess.com"]
[Source "ChessBase"]
[SourceQuality "1"]
[TimeControl "5400+30"]

1. e4 {[%emt 0:00:00]} d5 {[%emt 0:00:20]} 2. exd5 {[%emt 0:00:00]} Qxd5 {[%emt 0:00:10]} 3. Nc3 {[%emt 0:00:00]} Qa5 {[%emt 0:00:09]} 4. d4 {[%emt 0:00:05]} Nf6 {[%emt 0:00:20]} 5. Nf3 {[%emt 0:00:11]} Bf5 {[%emt 0:00:40]} 6. Ne5 {[%emt 0:00:38]} c6 {[%emt 0:01:24]} 7. Bd3 {[%emt 0:00:11]} Bxd3 {[%emt 0:00:59]} 8. Qxd3 {[%emt 0:00:03]} e6 {[%emt 0:01:02]} 9. O-O {[%emt 0:00:26]} Nbd7 {[%emt 0:02:19]} 10. Qg3 {[%emt 0:05:03]} Nxe5 {[%emt 0:10:53]} 11. dxe5 {[%emt 0:00:17]} Nd7 {[%emt 0:00:24]} 12. Bf4 {[%emt 0:06:37]} h6 {[%emt 0:01:33]} 13. Ne4 {[%emt 0:03:43]} O-O-O {[%emt 0:02:02]} 14. Rfd1 {[%emt 0:03:32]} Qa4 {[%emt 0:03:38]} 15. Qd3 {[%emt 0:08:44]} Be7 {[%emt 0:01:00]} 16. b3 {[%emt 0:00:18]} Qa5 {[%emt 0:02:21]} 17. Nd6+ {[%emt 0:01:59]} Bxd6 {[%emt 0:00:56]} 18. exd6 {[%emt 0:00:09]} Rhe8 {[%emt 0:12:05]} 19. Be3 {[%emt 0:03:43]} b6 {[%emt 0:05:15]} 20. a4 {[%emt 0:13:04]} Kb7 {[%emt 0:00:51]} 21. Qc4 {[%emt 0:05:25]} Rc8 {[%emt 0:04:44]} 22. Qd4 {[%emt 0:06:17]} f6 {[%emt 0:02:15]} 23. b4 {[%emt 0:02:02]} Qf5 {[%emt 0:02:26]} 24. a5 {[%emt 0:02:21]} e5 {[%emt 0:00:37]} 25. Qb2 {[%emt 0:03:22]} b5 {[%emt 0:01:17]} 26. a6+ {[%emt 0:05:46]} Ka8 {[%emt 0:00:27]} 27. c4 {[%emt 0:00:24]} bxc4 {[%emt 0:06:52]} 28. Qe2 {[%emt 0:00:08]} Qe6 {[%emt 0:00:37]} 29. Rac1 {[%emt 0:00:24]} f5 {[%emt 0:00:25]} 30. Rxc4 {[%emt 0:03:04]} f4 {[%emt 0:00:34]} 31. Bc5 {[%emt 0:02:46]} Nf6 {[%emt 0:03:34]} 32. Rc2 {[%emt 0:12:20]} Qd7 {[%emt 0:01:31]} 33. Rdc1 {[%emt 0:04:06]} e4 {[%emt 0:03:30]} 34. f3 {[%emt 0:03:08]} Rb8 {[%emt 0:05:59]} 35. fxe4 {[%emt 0:00:46]} Rxe4 {[%emt 0:01:38]} 36. Qd3 {[%emt 0:01:12]} Re6 {[%emt 0:05:22]} 37. Re2 {[%emt 0:00:40]} Rxe2 {[%emt 0:01:18]} 38. Qxe2 {[%emt 0:00:01]} Re8 {[%emt 0:03:20]} 39. Qf3 {[%emt 0:00:41]} g5 {[%emt 0:00:12]} 40. b5 {[%emt 0:00:38]} Ne4 {[%emt 0:01:00]} 41. Ba3 {[%emt 0:02:09]} Qd8 {[%emt 0:05:34]} 42. Rxc6 {[%emt 0:00:25]} Kb8 {[%emt 0:00:16]} 43. b6 {[%emt 0:01:25]} Qf6 {[%emt 0:01:26]} 44. bxa7+ {[%emt 0:00:16]} Kxa7 {[%emt 0:01:14]} 45. Rc7+ {[%emt 0:00:57]} Ka8 {[%emt 0:00:02]} 46. Qd3 {[%emt 0:00:27]} Qe5 {[%emt 0:02:56]} 47. Rc1 {[%emt 0:02:09]} g4 {[%emt 0:02:47]} 48. d7 {[%emt 0:00:43]} Rd8 {[%emt 0:00:04]} 49. Qc4 {[%emt 0:00:20]} Ka7 {[%emt 0:00:29]} 50. Rd1 {[%emt 0:00:49]} f3 {[%emt 0:00:30]} 51. gxf3 {[%emt 0:00:32]} gxf3 {[%emt 0:00:02]} 52. Qd4+ {[%emt 0:00:05]} Qxd4+ {[%emt 0:00:05]} 53. Rxd4 {[%emt 0:00:02]} Nf6 {[%emt 0:01:36]} 54. Be7 {[%emt 0:00:12]} Rxd7 {[%emt 0:00:03]} 55. Bxf6 {[%emt 0:00:02]} Rc7 {[%emt 0:00:17]} 56. Rd6 {[%emt 0:00:19]} 1-0

[Event "Kashem Chowdhury Rating-A 2019"]
[Site "Dhaka"]
[Date "2019.05.06"]
[Round "3.2"]
[White "Mohammad Minhaz Uddin"]
[Black "Mohammad Fahad, Rahman"]
[Result "1-0"]
[ECO "B58"]
[WhiteElo "2294"]
[BlackElo "2322"]
[Annotator "NA"]
[PlyCount "125"]
[EventDate "2019.05.04"]
[EventType "swiss"]
[EventCountry "BAN"]
[SourceTitle "playchess.com"]
[Source "ChessBase"]
[SourceQuality "1"]
[TimeControl "5400+30"]

1. e4 {[%emt 0:13:00]} c5 {[%emt 0:00:00]} 2. Nf3 {[%emt 0:00:26]} d6 {[%emt 0:00:00]} 3. d4 {[%emt 0:00:20]} cxd4 {[%emt 0:00:06]} 4. Nxd4 {[%emt 0:00:04]} Nf6 {[%emt 0:00:10]} 5. Nc3 {[%emt 0:00:04]} Nc6 {[%emt 0:00:11]} 6. Be2 {[%emt 0:00:12]} e5 {[%emt 0:00:25]} 7. Nf3 {[%emt 0:00:07]} Be7 {[%emt 0:00:52]} (7... h6 8. O-O Be7 9. Re1 O-O {½-½ (12) Kovchan,A (2596)-Baklan,V (2600) Trieste 2017}) 8. O-O {[%emt 0:00:07]} O-O {[%emt 0:01:03]} 9. h3 {[%emt 0:01:25]} h6 {[%emt 0:04:28]} 10. Re1 {[%emt 0:00:18]} Be6 {[%emt 0:02:13]} 11. Bf1 {[%emt 0:00:04]} Qa5 {[%emt 0:13:00]} 12. Bd2 {[%emt 0:04:09]} Qc7 {[%emt 0:03:12] B58: Classical Sicilian: 6 Be2} 13. Nb5 {[%emt 0:05:06]} Qd7 {[%emt 0:02:07]} 14. c4 {[%emt 0:00:16]} Nh7 $146 {[%emt 0:05:40]} ({Predecessor:} 14... a6 15. Nc3 Bd8 16. Rc1 Ne7 17. Be3 Ba5 18. Nd2 Rfc8 19. a3 Bxc3 20. Rxc3 {1-0 (41) Siepelt,H (2261)-Cernousek,L (2420) Bayern 2008}) 15. Bd3 {[%emt 0:01:25]} f5 {[%emt 0:05:48]} 16. exf5 {[%emt 0:00:48]} Bxf5 {[%emt 0:00:14]} 17. Bxf5 {[%emt 0:00:04]} Rxf5 {[%emt 0:00:19]} 18. Be3 {[%emt 0:02:05]} a6 {[%emt 0:01:37]} 19. Nc3 {[%emt 0:01:01]} Raf8 {[%emt 0:02:06]} 20. Nd2 {[%emt 0:03:32]} Ng5 {[%emt 0:08:14]} 21. Nde4 {[%emt 0:03:20]} Ne6 {[%emt 0:04:12]} 22. Ng3 {[%emt 0:00:50]} R5f7 {[%emt 0:00:27]} 23. Qg4 {[%emt 0:00:19]} Bg5 {[%emt 0:01:26]} 24. Nce4 {[%emt 0:06:59]} Bxe3 {[%emt 0:01:30]} 25. fxe3 {[%emt 0:00:31]} Nc5 {[%emt 0:09:25]} 26. Rad1 {[%emt 0:04:30]} Qxg4 {[%emt 0:04:23]} 27. hxg4 {[%emt 0:00:02]} Nxe4 {[%emt 0:04:57]} 28. Nxe4 {[%emt 0:00:03]} Rc7 {[%emt 0:06:00]} 29. Re2 {[%emt 0:08:38]} b5 {[%emt 0:03:40]} 30. cxb5 {[%emt 0:00:25]} axb5 {[%emt 0:01:31]} 31. Rc2 {[%emt 0:00:33]} d5 {[%emt 0:00:16]} 32. Nd6 {[%emt 0:02:45]} Rd8 {[%emt 0:01:29] [#]} 33. Nf5 $1 {[%emt 0:03:31]} ({Weaker is} 33. Rxd5 Nb4 $14) ({Don't take} 33. Nxb5 $6 Rcc8 $16) 33... Kh7 {[%emt 0:00:12] [#]} 34. Rdc1 $1 {[%emt 0:03:37]} g6 {[%emt 0:01:37] [#]} 35. Nh4 $1 {[%emt 0:09:23]} ({Resist} 35. Rxc6 $6 Rxc6 36. Rxc6 gxf5 $16) 35... Rd6 {[%emt 0:01:26]} 36. Nf3 {[%emt 0:00:04]} d4 {[%emt 0:00:42] [#]} 37. Nxe5 $1 {[%emt 0:04:14] Pin} d3 {[%emt 0:00:09]} 38. Rxc6 {[%emt 0:00:57]} Rcxc6 {[%emt 0:00:25]} 39. Nxc6 {[%emt 0:00:02]} (39. Rxc6 $2 {too greedy.} Rxc6 40. Nxd3 (40. Nxc6 $2 {is the wrong capture.} d2 $19) 40... Rc2 $19) 39... d2 {[%emt 0:00:08]} 40. Rd1 {[%emt 0:00:01]} Rxc6 {[%emt 0:00:12]} 41. Rxd2 {[%emt 0:00:02]} Kg7 {[%emt 0:00:36]} 42. Rd5 {[%emt 0:07:07]} Rc1+ {[%emt 0:00:48]} 43. Kh2 {[%emt 0:00:05]} b4 {[%emt 0:00:07]} 44. Rd4 {[%emt 0:00:10]} Ra1 {[%emt 0:00:09]} 45. Rxb4 {[%emt 0:00:03]} Rxa2 {[%emt 0:00:06]} 46. Kg3 {[%emt 0:01:23]} Kf6 $18 {[%emt 0:00:15]} 47. Kf4 {[%emt 0:00:18]} Ra6 {[%emt 0:00:13]} 48. g5+ {[%emt 0:00:55]} hxg5+ {[%emt 0:00:11]} 49. Kg4 {[%emt 0:00:02]} Re6 {[%emt 0:00:30]} 50. e4 {[%emt 0:00:05]} Rc6 {[%emt 0:01:10]} 51. b3 {[%emt 0:00:32]} (51. Rb5 $18 {has better winning chances.}) 51... Rc2 {[%emt 0:00:16]} 52. g3 {[%emt 0:00:01]} Rc3 {[%emt 0:00:11]} 53. Rb6+ {[%emt 0:06:19]} Ke5 {[%emt 0:00:22]} 54. b4 {[%emt 0:00:04]} Kxe4 {[%emt 0:05:56]} 55. Rxg6 {[%emt 0:01:54]} Rb3 {[%emt 0:00:25]} 56. Re6+ {[%emt 0:04:08]} Kd4 {[%emt 0:00:27]} 57. Rb6 {[%emt 0:02:14]} Kd5 {[%emt 0:00:58]} 58. b5 {[%emt 0:00:31]} Kd4 {[%emt 0:03:34]} 59. Rb8 {[%emt 0:00:45]} Ke5 {[%emt 0:00:14]} 60. Rg8 {[%emt 0:01:25]} Rb4+ {[%emt 0:00:09]} 61. Kh5 {[%emt 0:00:17]} Ke4 {[%emt 0:00:17]} 62. Rxg5 {[%emt 0:00:16]} Kf3 {[%emt 0:00:09]} 63. Kg6 {[%emt 0:00:11]} 1-0

[Event "Kashem Chowdhury Rating-A 2019"]
[Site "Dhaka"]
[Date "2019.05.06"]
[Round "3.3"]
[White "Md.abu, Hanif"]
[Black "Islam, Kh. Aminul"]
[Result "0-1"]
[ECO "A48"]
[WhiteElo "2042"]
[BlackElo "2229"]
[Annotator "NA"]
[PlyCount "80"]
[EventDate "2019.05.04"]
[EventType "swiss"]
[EventCountry "BAN"]
[SourceTitle "playchess.com"]
[Source "ChessBase"]
[SourceQuality "1"]
[TimeControl "5400+30"]

{[%evp 17,80,0,0,-24,-19,-18,-13,-27,-10,-9,-7,0,0,32767,-18,-39,-35,32767,32767,-38,32767,32767,32767,32767,32767,32767,32767,32767,32767,32767,32767,32767,32767,-126,32767,-143,32767,-153,32767,32767,-141,-145,-138,-129,-162,-210,-190,-330,-310,-435,-475,-480,-465,-476,-510,-622,32767,32767,-538,-533,-553,-654,32767,32767,-735]} 1. d4 {[%emt 0:12:41]} Nf6 {[%emt 0:00:07]} 2. Bf4 {[%emt 0:00:08]} g6 {[%emt 0:00:44]} 3. Nf3 {[%emt 0:00:14]} Bg7 {[%emt 0:00:08]} 4. e3 {[%emt 0:00:39]} d6 {[%emt 0:03:36]} 5. h3 {[%emt 0:00:20]} Nbd7 {[%emt 0:00:52]} 6. Be2 {[%emt 0:00:26]} O-O {[%emt 0:00:32]} 7. O-O {[%emt 0:00:18]} b6 {[%emt 0:01:10]} 8. Nbd2 {[%emt 0:00:23]} Bb7 {[%emt 0:00:19]} 9. c3 {[%emt 0:03:43]} Re8 {[%emt 0:00:42]} 10. Nc4 {[%emt 0:01:25] A48: 1 d4 Nf6 2 Nf3 g6: Torre, London and Colle Systems} (10. Bh2 e5 11. a4 a6 12. Qb3 Qe7 13. Rfd1 e4 14. Ne1 a5 15. Rac1 h5 16. c4 g5 17. Nf1 Qe6 {0-1 (60) Rakesh,K (2416)-Kriebel,T (2507) Prague 2019}) 10... Ne4 {[%emt 0:04:17]} 11. Nfd2 {[%emt 0:02:09]} e5 {[%emt 0:01:25]} 12. Bh2 {[%emt 0:02:19]} Nxd2 {[%emt 0:03:19]} 13. Nxd2 {[%emt 0:00:11]} Nf6 {[%emt 0:02:01]} 14. dxe5 {[%emt 0:00:47]} dxe5 {[%emt 0:00:11]} 15. Nf3 {[%emt 0:00:57]} Ne4 $146 {[%emt 0:01:04]} ({Predecessor:} 15... e4 16. Nd4 c5 17. Nb5 Rc8 18. Nd6 Qe7 19. Nxc8 Rxc8 {1-0 (46) Palchun,G (2129)-Kosov,I (1746) St Petersburg 2008}) 16. Qxd8 {[%emt 0:01:18]} Raxd8 {[%emt 0:00:06]} 17. Rfd1 {[%emt 0:00:21]} f6 {[%emt 0:05:42]} 18. Bb5 {[%emt 0:02:26]} Rf8 {[%emt 0:05:55]} 19. Kf1 {[%emt 0:00:25]} Kf7 {[%emt 0:01:42]} 20. Ke1 {[%emt 0:00:34]} Ke7 {[%emt 0:00:52]} 21. Ng1 {[%emt 0:04:06]} Nd6 {[%emt 0:05:32]} 22. Bf1 {[%emt 0:00:03]} Rd7 {[%emt 0:04:04]} 23. f3 {[%emt 0:00:17]} Rfd8 {[%emt 0:01:45]} 24. e4 {[%emt 0:05:57]} Bh6 {[%emt 0:02:37]} 25. Bd3 {[%emt 0:02:09]} Bc6 {[%emt 0:02:36]} 26. b3 {[%emt 0:02:05]} Nb7 {[%emt 0:00:54]} 27. Be2 {[%emt 0:04:18]} Bd2+ {[%emt 0:01:01]} 28. Kf1 {[%emt 0:00:26]} Nc5 {[%emt 0:02:30]} 29. c4 {[%emt 0:01:04]} a5 {[%emt 0:03:06]} 30. Bg3 {[%emt 0:00:48]} Na6 {[%emt 0:01:28]} 31. Be1 {[%emt 0:00:58] [#]} (31. a3 $17 {is a better defense.}) 31... Nb4 $1 {[%emt 0:01:13]} 32. a4 {[%emt 0:10:07]} (32. Bf2 {keeps fighting.}) 32... Nc2 {[%emt 0:00:44] Double Attack} 33. Rxd2 {[%emt 0:03:56]} Rxd2 {[%emt 0:00:33]} ({Weaker is} 33... Nxa1 34. Rb2 $17) 34. Rc1 {[%emt 0:03:19]} Nxe1 {[%emt 0:02:01]} 35. Kxe1 {[%emt 0:00:01]} Rb2 {[%emt 0:01:03]} 36. Rc3 {[%emt 0:00:08]} Be8 {[%emt 0:01:39]} 37. h4 {[%emt 0:00:47]} Rdd2 {[%emt 0:01:12]} 38. Re3 {[%emt 0:00:31]} Rdc2 {[%emt 0:03:58]} 39. Nh3 {[%emt 0:00:14]} Rc1+ {[%emt 0:00:44]} 40. Kf2 {[%emt 0:00:06]} Rcb1 $19 {[%emt 0:00:30]} 0-1